Cogmind - Beta 13 @@@ ROGUE MODE // 2024.04.27 @ 19:34:38 Player: Zaros426 Result: Destroyed by S-10 Pest with Light Assault Rifle Performance ------------- Evolutions (0) 0 Regions Visited (2) 400 Robots Destroyed (44) 220 Value Destroyed (730) 730 Prototype IDs (3) 60 Alien Tech Used (0) 0 Bonus (8) 8 TOTAL SCORE: 1418 Bonus ------- High Alert Combat Kills 8 Cogmind --------- Core Integrity 0/250 Matter 168/300 Energy 95/100 System Corruption 0% Temperature Cool (0) Movement Walking (190) Ox1 Location -10/Mines Parts ------- > --- POWER (1) -------- (None) > --- PROPULSION (2) --- Aluminum Leg Aluminum Leg > --- UTILITY (2) ------ Large Storage Unit Signal Interpreter > --- WEAPON (2) ------- Maul > --- INVENTORY (15) --- Heavy Ion Engine Heavy Ion Engine Heat Sink Disposable Heat Sink Large Storage Unit Improved Terrain Scanner Seismic Detector Light Armor Plating Maul Maul Maul Peak State ------------ > --- POWER ------------ Heavy Ion Engine > --- PROPULSION ------- Light Treads Light Treads > --- UTILITY ---------- Huge Storage Unit Light Armor Plating > --- WEAPON ----------- Maul Maul > --- INVENTORY -------- Ion Engine Heavy Ion Engine Heavy Ion Engine Aluminum Leg Aluminum Leg Disposable Heat Sink Improved Terrain Scanner Seismic Detector Grenade Launcher Maul Maul [Rating: 13] Favorites ----------- Power Heavy Ion Engine Engine Heavy Ion Engine Propulsion Light Treads Treads Light Treads Leg Aluminum Leg Wheel Wheel Utility Signal Interpreter Device Seismic Detector Storage Huge Storage Unit Processor Signal Interpreter Protection Light Armor Plating Weapon Particle Gun Energy Gun Particle Gun Launcher Grenade Launcher Impact Weapon Maul Build | -11 -10 -10 ------- Run | Yrd Mat Min Slots Evolved . | . . . Power . | . . . Propulsion . | . . . Utility . | . . . Weapon . | . . . Parts Attached 32 | 7 20 5 Power 2 | 1 1 . Engine 2 | 1 1 . Core . | . . . Reactor . | . . . Propulsion 14 | 2 9 3 Treads 6 | 2 4 . Leg 4 | . 2 2 Wheel 4 | . 3 1 Hover . | . . . Flight . | . . . Utility 7 | 2 5 . Device 2 | 1 1 . Storage 3 | 1 2 . Processor 1 | . 1 . Hackware . | . . . Protection 1 | . 1 . Artifact . | . . . Weapon 9 | 2 5 2 Energy Gun 5 | 2 2 1 Energy Cannon . | . . . Ballistic Gun . | . . . Ballistic Cannon . | . . . Launcher 1 | . . 1 Special Weapon . | . . . Impact Weapon 3 | . 3 . Slashing Weapon . | . . . Piercing Weapon . | . . . Special Melee Weapon . | . . . Unidentified Prototypes 1 | . 1 . Parts Lost 10 | . 4 6 Power 1 | . . 1 Propulsion 5 | . 2 3 Utility 1 | . 1 . Weapon 3 | . 1 2 Highest Loss Streak 3 | . 3 2 To Critical Strikes . | . . . Average Slot Usage (%) 98 | . 99 95 Engine 14 | . 14 14 Treads 16 | . 16 18 Leg 4 | . 3 4 Wheel 6 | . 8 1 Device 2 | . 2 . Storage 14 | . 14 14 Processor 10 | . 9 14 Protection 1 | . 2 . Energy Gun 15 | . 17 7 Launcher 1 | . . 5 Impact Weapon 11 | . 10 14 Naked Turns . | . . . Heaviest Build 97 | 15 97 34 Greatest Support 40 | 40 40 40 Greatest Overweight (x) 11 | . 9 11 Average Overweight (x) 1 | . 2 . Largest Inventory Capacity 25 | 8 25 15 Average Capacity 18 | 7 21 15 Most Carried 15 | 3 15 14 Average Carried 11 | 1 12 13 Final Capacity 15 | 8 15 15 Final Carried 14 | 3 14 11 Class Distribution -------------------- 100% | Mutant Dominant Class ---------------- Mutant | -10/Materials Mutant | -10/Mines Resources | -11 -10 -10 ----------- Run | Yrd Mat Min Matter Collected 542 | 260 264 18 Remotely . | . . . Salvage Created 1012 | 113 810 89 Parts 75 | 10 47 18 Haulers Intercepted . | . . . Recyclers Shooed . | . . . Parts Field Recycled . | . . . Retrieved Matter . | . . . Parts Self-Destructed . | . . . Prevented . | . . . Kills | -11 -10 -10 ------- Run | Yrd Mat Min Combat Hostiles Destroyed 28 | . 18 10 Melee 6 | . 5 1 Guns 11 | . 7 4 AOE 5 | . . 5 Classes Destroyed 7 | 2 5 . Worker 2 | 1 1 . Builder 2 | . 2 . Tunneler 5 | 4 . 1 Recycler 4 | . 4 . Watcher 3 | . 3 . Swarmer 16 | . 6 10 Grunt 12 | . 12 . Best Kill Streak 6 | 2 6 3 Combat Bots Only 5 | . 5 3 Max Kills in Single Turn 2 | 1 2 2 Gunslinging . | . . . Exploded 2 | . . 2 Melee 2 | . 2 1 Uniques/NPCs Destroyed . | . . . Combat | -11 -10 -10 -------- Run | Yrd Mat Min Hostile Shots Fired 174 | . 123 51 Missed 48 | . 35 13 Damage Taken 1293 | . 887 406 Core 255 | . 148 107 Absorbed by Shields . | . . . Core Remaining (%) 100 | 100 . . Volleys Fired 81 | 9 48 24 Largest 2 | 2 2 1 Hottest 130 | 90 130 65 Shots Fired 124 | 18 82 24 Gun 111 | 18 82 11 Cannon . | . . . Launcher 13 | . . 13 Special . | . . . Kinetic . | . . . Thermal 102 | 9 82 11 Explosive 13 | . . 13 Electromagnetic 9 | 9 . . Robot Hit Streak 13 | 5 13 4 Robot Miss Streak 4 | 2 4 2 Penetration Max . | . . . Secondary Targets . | . . . Shots Hit Robots 87 | 11 65 11 Core Hits 39 | 5 24 10 Critical Kills . | . . . Critical Parts Destroyed 7 | . 7 . Critical Strikes 10 | 2 8 . Burn 3 | 2 1 . Smash 7 | . 7 . Melee Attacks 39 | . 36 3 Impact 39 | . 36 3 Slashing . | . . . Piercing . | . . . Sneak Attacks 2 | . 2 . Combat Hostiles . | . . . Follow-up Attacks 5 | . 5 . Damage Inflicted 2310 | 156 1665 489 Guns 984 | 156 700 128 Cannons . | . . . Explosions 259 | . . 259 Melee 1067 | . 965 102 Ramming . | . . . Kinetic . | . . . Thermal 936 | 88 700 148 Explosive 239 | . . 239 Electromagnetic 68 | 68 . . Impact 1067 | . 965 102 Slashing . | . . . Piercing . | . . . Highest Corruption . | . . . Average Corruption . | . . . Corruption Purged . | . . . Corruption Blocked . | . . . Overload Shots . | . . . Overflow Damage 425 | . 400 25 Projectiles . | . . . Explosions 18 | . . 18 Melee 407 | . 400 7 Knockbacks 5 | . 5 . Impact 5 | . 5 . Kinetic . | . . . Secondary . | . . . Self-Inflicted Damage 102 | . . 102 Shots 4 | . . 4 Rammed . | . . . Targets Rammed . | . . . Kicked . | . . . Crushed . | . . . Highest Temperature 423 | 132 423 182 Average Temperature 113 | 45 128 66 Received Heat Transfer 378 | . 378 . Effects 6 | . 6 . Shutdowns 2 | . 2 . Energy Bleed 1 | . 1 . Interference 2 | . 2 . Matter Decay 1 | . 1 . Siege Activations . | . . . Robots Corrupted . | . . . Combat Hostiles . | . . . Parts Fried 7 | . 7 . Impact Corruptions 15 | . 14 1 Robots Melted 1 | . 1 . Combat Hostiles 1 | . 1 . Parts Melted 4 | 2 2 . Heat Transferred 2455 | 407 1702 346 Parts Sabotaged . | . . . Parts Stolen . | . . . Parts Stripped . | . . . Power Chain Reactions . | . . . Alert | -11 -10 -10 ------- Run | Yrd Mat Min Peak Influence 404 | 25 404 375 Initial 132 | . 16 132 Average 223 | 12 244 249 Maximum Alert Level 2 | . 2 1 Low Security (%) 27 | 100 19 24 Level 1 71 | . 80 75 Level 2 . | . . . Level 3 . | . . . Level 4 . | . . . Level 5 . | . . . High Security . | . . . Max Security . | . . . Squads Dispatched 5 | . 5 . Investigation 4 | . 4 . Extermination . | . . . Reinforcement 1 | . 1 . Assault . | . . . Garrison . | . . . Intercept . | . . . Searches Triggered . | . . . Construction Impeded . | . . . Haulers Reinforced . | . . . Active Scanning Responses . | . . . Cargo Convoy Interrupts . | . . . Stealth | -11 -10 -10 --------- Run | Yrd Mat Min Distress Signals 4 | . 4 . Communications Jammed . | . . . Distress Signals . | . . . Times Spotted 52 | . 41 11 Peak Tracking Total 6 | . 6 3 Tactical Retreats 9 | . 9 . Traps | -11 -10 -10 ------- Run | Yrd Mat Min Traps Triggered 2 | . 2 . Indirectly . | . . . Trap Hack Attempts . | . . . Triggered . | . . . Disarmed . | . . . Reprogrammed . | . . . Reused . | . . . Traps Extracted . | . . . Installed . | . . . Triggered 3 | . 3 . Machines | -11 -10 -10 ---------- Run | Yrd Mat Min Machines Disabled 3 | . 1 2 Max in Single Turn 2 | . 1 2 Machines Repaired . | . . . Machines Dismantled . | . . . Machines Sabotaged . | . . . Overloaded Fab Kills . | . . . Hacking | -11 -10 -10 --------- Run | Yrd Mat Min Machines Accessed 7 | . 7 . Terminals 5 | . 5 . Fabricators . | . . . Repair Stations . | . . . Recycling Units 2 | . 2 . Scanalyzers . | . . . Garrison Access . | . . . Total Hacks 14 | . 14 . Successful 8 | . 8 . Failed 6 | . 6 . Catastrophic 2 | . 2 . Database Lockouts . | . . . Manual 9 | . 9 . Terminals 12 | . 12 . Fabricators . | . . . Repair Stations . | . . . Recycling Units 2 | . 2 . Scanalyzers . | . . . Garrison Access . | . . . Terminal Hacks 5 | . 5 . Robot Analysis 1 | . 1 . Prototype ID Bank 1 | . 1 . Alert Level 1 | . 1 . Surveillance Status 1 | . 1 . Zone Layout 1 | . 1 . Fabricator Hacks . | . . . Repair Station Hacks . | . . . Recycling Unit Hacks . | . . . Scanalyzer . | . . . Garrison Access Hacks . | . . . Unauthorized Hacks 3 | . 3 . Terminals 1 | . 1 . Botnet 1 | . 1 . Fabricators . | . . . Repair Stations . | . . . Recycling Units 2 | . 2 . Tunnel 2 | . 2 . Scanalyzers . | . . . Garrison Access . | . . . Data Cores Recovered . | . . . Used . | . . . Hacking Detections 4 | . 4 . Full Trace Events . | . . . Feedback Events . | . . . Feedback Blocked . | . . . Robot Schematics Acquired . | . . . Robots Built . | . . . Authchips . | . . . Time . | . . . Total Robot Build Rating . | . . . Part Schematics Acquired . | . . . Parts Built . | . . . Authchips . | . . . Time . | . . . Total Part Build Rating . | . . . Parts Repaired . | . . . Time . | . . . Parts Recycled . | . . . Recycled Matter . | . . . Retrieved Matter . | . . . Retrieved Components . | . . . Parts Scanalyzed . | . . . Part Schematics Acquired . | . . . Parts Damaged . | . . . Bothacking | -11 -10 -10 ------------ Run | Yrd Mat Min Used RIF Installer . | . . . Robots Hacked . | . . . Non-combat . | . . . Combat . | . . . Robot Hacks Applied . | . . . Relay Couplers Released . | . . . Fabnet Peak Effective % . | . . . Robots Rewired . | . . . Allies Hacked . | . . . Hacks Repelled . | . . . Allies | -11 -10 -10 -------- Run | Yrd Mat Min Total Allies . | . . . Largest Group . | . . . Highest-Rated Group . | . . . Highest-Rated Ally . | . . . Total Orders . | . . . Ally Attacks . | . . . Total Damage . | . . . Kills . | . . . Allies Corrupted . | . . . Allies Melted . | . . . Intel | -11 -10 -10 ------- Run | Yrd Mat Min Robot Analysis Total 1 | . 1 . Derelict Logs Recovered . | . . . Drone Launches . | . . . Drone Recoveries . | . . . Exploration | -11 -10 -10 ------------- Run | Yrd Mat Min Turns Passed 2192 | 205 1538 449 Spaces Moved 984 | 105 644 235 Core 4 | 2 . 2 Treads 543 | 103 275 165 Legs 160 | . 125 35 Wheels 277 | . 244 33 Hover . | . . . Flight . | . . . Fastest Speed 50 | 50 120 125 Average Speed 179 | 157 189 163 Slowest Speed 600 | 160 400 600 Overloaded Moves . | . . . Propulsion Burnouts . | . . . Robots Hopped . | . . . Cave-ins Triggered . | . . . Exploration Rate (%) 49 | 5 97 45 Regions Visited 2 Branch Regions 1 Pre-discovered Areas 2 | . 2 . Known Exits Taken 1 | . 1 . Unknown Exits Taken 1 | 1 . . Scrap Searched . | . . . Spaces Dug 14 | . . 14 Terrain Destroyed 84 | . . 84 Melee . | . . . Projectile . | . . . AOE 84 | . . 84 Terrain Rammed . | . . . Walls Destroyed . | . . . Machines Disabled . | . . . Actions | -11 -10 -10 --------- Run | Yrd Mat Min Total 1212 | 123 817 272 Wait 57 | . 52 5 Move 982 | 104 643 235 Hop . | . . . Pick Up 23 | 3 20 . Fast Attach 9 | 7 1 1 Attach 7 | . 4 3 Detach . | . . . Swap 16 | . 15 1 Drop 6 | . 6 . Fire 81 | 9 48 24 Melee 31 | . 28 3 Ram . | . . . Kick . | . . . Crush . | . . . Escape Stasis . | . . . Rewire . | . . . Trap . | . . . Miscellaneous . | . . . Route ------- -11/Scrapyard -10/Materials (discovered 6 exits: *Mat x3 / *Min x2 / *Sub) -10/Mines (discovered 1 exit: *Mat) History --------- Turn | Location | Event 15 | -11/Scrapyard | Discovered new exit (range 15) 206 | -11/Scrapyard | Entered Materials 311 | -10/Materials | Build established: Mutant 454 | -10/Materials | Discovered new exit (range 16) 791 | -10/Materials | Identified exit to Mines 1093 | -10/Materials | Discovered new exit (range 7) 1100 | -10/Materials | Identified exit to Subcaves 1252 | -10/Materials | Discovered new exit (range 7) 1259 | -10/Materials | Identified exit to Materials 1371 | -10/Materials | Discovered exit to Materials (range 9) 1380 | -10/Materials | Core integrity fell below 50% 1442 | -10/Materials | Lost 3 parts (2n1w) 1555 | -10/Materials | Discovered exit to Mines (range 16) 1634 | -10/Materials | Discovered exit to Materials (range 15) 1744 | -10/Materials | Entered Mines 1988 | -10/Mines | Discovered exit to Materials (range 5) 2034 | -10/Mines | Core integrity fell below 20% 2193 | -10/Mines | Destroyed by S-10 Pest with Light Assault Rifle Last Messages --------------- 02065_ The unstable cave ceiling collapses. 02070_ U-05 Engineer lays Concrete. 02108_ Wheel destroyed. 02109_ S-10 Pest destroyed. 02112_ Grenade Launcher destroyed. 02119_ Acquired 6 matter. 02121_ R-06 Scavenger collects Lgt. Assault Rifle. 02123_ S-10 Pest destroyed. 02124_ R-06 Scavenger collects Flight Unit. 02140_ Acquired 10 matter. 02144_ Acquired 2 matter. 02154_ K-01 Serf collects debris. 02179_ Particle Gun destroyed. 02181_ Destroyed Flight Unit. 02181_ S-10 Pest system corrupted by crushing effect. 02181_ S-10 Pest IFF system glitched. 02181_ S-10 Pest destroyed. 02188_ S-10 Pest IFF system glitched. 02188_ S-10 Pest destroyed. 02190_ Hvy. Ion Engine destroyed. Map ----- +----------------------------------------------------+ | ????##########??????????????????????????????? ## | | ????# #####??????????????????????????# | | ????# #### ##????????????????????????# | | ????# #??# < #????????????????????##### = | | ##### #??## ## #????####????????????# = | | #???## ##???#???## #######??????# | | #######????# #?######## #??????# # | | ???????????# ### #####??# # | | #??????????# #### #?##### | | ##?????????# = #??????? | | #?????????###### # #??????? | | #??????????????####### * ######?####?? | | ##?????????????????# ## = #?????## ##? | | #?????????????????# ?## ## * ##????## ## | | #??????????????? ??# ### ##?????# # | | #????????????? ## ??# #?## #??????# | | ?????????????#???# ??# #??## #??????## | | ?????????????????## ??# #???# #???????## | | ??????????????????## ??# #???# ##????????## | | ???????????????????# ??# #???# #?????????## | | ??????????????????? ???# #???# ##????????# | | ??????????????????? ???# #???## ###?????## | | ???????????????????? ???# #????## ##?#### | | ????????????????????##???# #?????# ### | | ?????????? ####### ####### ## | | ?????????? r@* ## | | ??????????# [s ### | | ?????????????# ####### ### ### ###?# | | ?????????????## ???????? #?# #?# ##???# | | ??????????????# ???????????#?## ##?# ##????# | | ?????????????# ???????????????# ##?## #?????# | | ?????????????# ?????????????????# ?### ##?????# | | ????????????????????????????????? ## #??????? | | ???????????????????????????????? ### ##??????? | | ????????????????????????????# ## ### ##???????? | | ????????????????????????????# %########?? | | ???????????????????????????# % % ##? | | ??????????????????????????# #### #? | | ?????????????????????????# ????######## ## | | ?????????????????????????# ???????# # | | ?????????????????????????## ????????# | | ??????????????????????????###?????# #### | | ??????????????????????????????????# ###????# | | ??????????????????????????????????????????# | | ??????????????????????????????????????????# | | ??????????????????????????????????????????## | | ???????????????????????????????????????????### ## | | ?????????????????????????????????????????????####? | | ?????????????????????????????????????????????????? | | ?????????????????????????????????????????????????? | +----------------------------------------------------+ Best States ------------- Heat Dissipation 25 Energy Generation 14 Energy Capacity 280 Matter Stores 300 Matter Capacity 300 Sight Range 16 Terrain Scan Density 10 Armor Coverage 150 Evasion (%) 55 Recoil Reduction 2 Item Schematics ----------------- None Robot Schematics ------------------ None Fabricated ------------ Nothing Alien Tech Used ----------------- None Achievements -------------- None Challenges ------------ None Game ------ Seed MolecularThrowingExpander Manual? 0 Play Time 00:16:08 Cumulative 72.0 hours Start 2024.04.27 @ 19:14:32 End 2024.04.27 @ 19:34:38 Sessions 1 Manual Loads 0 Difficulty Rogue Special Mode None Game No. 80 Rogue 80 Adventurer 0 Explorer 0 Win Type - Total 0 Types 0/0/0/0/0/0/0/0/0 Lore% 36 Gallery% 51 Achievement% 37 Wizard Run 0 Options --------- Layout 0 ASCII 0 Keyboard 0 Movement Mouse Keybinds 0 Fullscreen 2 Font 24/Smallcaps Map View 183x50 Zoom Use 0% Tactical HUD 1 Map Filters NONE Filters NONE Steam 0 RUN: c3a354d6-dea8-498d-83bf-b9bacdd4bcdf